bitfinex/quotes_BTCUSD_20251012
["timestamp","ask_amount","ask_price","bid_price","bid_amount"]
[1760304185399,0.07468,115340.0,115330.0,0.17341541]
[1760304185616,0.02457,115340.0,115330.0,0.25105011]
[1760304185826,0.10879,115340.0,115330.0,0.25105011]
[1760304186337,0.44879,115340.0,115330.0,0.25105011]
[1760304186766,0.39868,115340.0,115330.0,0.30456011]
[1760304186991,0.39868,115340.0,115330.0,0.19300541]
[1760304187209,0.45379,115340.0,115330.0,0.17341541]
[1760304187650,0.62319038,115340.0,115330.0,0.17341541]
[1760304187903,0.45479,115340.0,115330.0,0.17341541]
[1760304188110,0.4649647,115340.0,115330.0,0.17341541]
[1760304188322,0.44879,115340.0,115330.0,0.17341541]
[1760304188551,0.62319038,115340.0,115330.0,0.17341541]
[1760304188756,0.44979,115340.0,115330.0,0.17341541]
[1760304188973,0.44879,115340.0,115330.0,0.17341541]
[1760304189185,0.39868,115340.0,115330.0,0.22692541]
[1760304189391,0.39868,115340.0,115330.0,0.19300541]
[1760304189598,0.44879,115340.0,115330.0,0.19300541]
[1760304190011,0.45379,115340.0,115330.0,0.19300541]
[1760304190250,0.44879,115340.0,115330.0,0.19300541]
[1760304190665,0.45379,115340.0,115330.0,0.19300541]
[1760304190872,0.45379,115340.0,115330.0,0.17341541]
[1760304191292,0.62719038,115340.0,115330.0,0.17341541]
[1760304192872,0.48334618,115340.0,115330.0,0.17341541]
[1760304193302,0.48334618,115340.0,115330.0,0.17311971]
[1760304193541,0.48334618,115340.0,115330.0,0.17282404]
[1760304193779,0.65674656,115340.0,115330.0,0.17252636]
[1760304194215,0.65674656,115340.0,115330.0,0.17341541]
[1760304194465,1.41106623,115340.0,115330.0,0.17341541]
[1760304194695,1.41106623,115340.0,115320.0,0.17281145]
[1760304194902,0.02457,115330.0,115320.0,0.17281145]
[1760304195118,0.10879,115330.0,115320.0,0.17252019]
[1760304195339,0.10926296,115330.0,115320.0,0.17252019]
[1760304195548,0.10926296,115330.0,115320.0,0.17222631]
[1760304195930,0.10926296,115330.0,115320.0,0.17193094]
[1760304196341,0.11426296,115330.0,115320.0,0.17163946]
[1760304196548,0.11426296,115330.0,115320.0,0.17134914]
[1760304197008,0.11426296,115330.0,115320.0,0.17105729]
[1760304197212,0.11426296,115330.0,115320.0,0.17076143]
[1760304197628,0.11426296,115330.0,115320.0,0.17046994]
[1760304197830,0.11526296,115330.0,115320.0,0.17017897]
[1760304198255,0.62867837,115330.0,115310.0,0.13149316]
[1760304198470,0.34,115320.0,115310.0,0.23832574]
[1760304198678,0.34,115320.0,115310.0,0.27250574]
[1760304198679,0.37469997,115320.0,115310.0,0.27250574]
[1760304199093,0.37469997,115320.0,115310.0,0.27221614]
[1760304199311,0.37469997,115320.0,115310.0,0.33420534]
[1760304199520,0.34049997,115320.0,115310.0,0.38430446]
[1760304199732,0.34049997,115320.0,115310.0,0.38400646]
[1760304199937,0.34549997,115320.0,115310.0,0.32201726]
[1760304200139,0.34549997,115320.0,115310.0,0.32172019]
[1760304200344,0.34549997,115320.0,115310.0,0.32142387]
[1760304200563,0.37969997,115320.0,115310.0,0.27103387]
[1760304200784,0.37969997,115320.0,115310.0,0.27074053]
[1760304200989,0.34549997,115320.0,115310.0,0.33246131]
[1760304201253,0.34549997,115320.0,115310.0,0.27015032]
[1760304201462,0.57883042,115320.0,115310.0,0.27015032]
[1760304201660,0.40539997,115320.0,115310.0,0.33190538]
[1760304201834,0.45748997,115320.0,115310.0,0.29743775]
[1760304202067,0.63092042,115320.0,115310.0,0.21716117]
[1760304202272,0.45248997,115320.0,115310.0,0.29447792]
[1760304202478,0.45748997,115320.0,115310.0,0.29418607]
[1760304202684,0.00649997,115320.0,115310.0,0.39698607]
[1760304202891,0.00149997,115320.0,115310.0,0.39669516]
[1760304203112,0.00549997,115320.0,115310.0,0.39669516]
[1760304203317,0.00549997,115320.0,115310.0,0.39640578]
[1760304203526,0.00649997,115320.0,115310.0,0.39611351]
[1760304204013,0.3647,115330.0,115320.0,0.19077045]
[1760304204210,0.3742,115330.0,115320.0,0.30636493]
[1760304204428,0.0342,115330.0,115320.0,0.30636493]
[1760304204636,0.0342,115330.0,115320.0,0.30607718]
[1760304205110,0.0342,115330.0,115320.0,0.30579032]
[1760304205318,0.0342,115330.0,115320.0,0.24339057]
[1760304205539,0.0392,115330.0,115320.0,0.24309967]
[1760304205748,0.0342,115330.0,115320.0,0.24309967]
[1760304205929,0.0342,115330.0,115320.0,0.30499615]
[1760304206075,0.0392,115330.0,115320.0,0.30470678]
[1760304206460,0.005,115330.0,115320.0,0.30441705]
[1760304206738,0.005,115330.0,115320.0,0.35451947]
[1760304206944,0.86457,115340.0,115330.0,0.19075541]
[1760304207148,0.89877,115340.0,115330.0,0.19046873]
[1760304207358,0.89877,115340.0,115330.0,0.22436124]
[1760304207567,0.86457,115340.0,115330.0,0.24395124]
[1760304207781,0.89877,115340.0,115330.0,0.24366305]
[1760304207989,0.84,115340.0,115330.0,0.24337373]
[1760304208248,0.84,115340.0,115330.0,0.29376373]
[1760304208478,0.84,115340.0,115330.0,0.29347438]
[1760304208723,0.84,115340.0,115330.0,0.24279799]
[1760304208966,0.84,115340.0,115330.0,0.27556154]
[1760304209190,0.841,115340.0,115330.0,0.27556154]
[1760304209407,0.841,115340.0,115330.0,0.27527171]
[1760304209615,0.843,115340.0,115330.0,0.27497979]
[1760304209833,0.8772,115340.0,115330.0,0.22429989]
[1760304210314,0.95399,115340.0,115330.0,0.18983012]
[1760304210535,1.88171005,115340.0,115320.0,0.17083339]
[1760304210751,0.07679,115330.0,115320.0,0.1705417]
[1760304210961,0.11099,115330.0,115320.0,0.21188477]
[1760304211169,0.0589,115330.0,115320.0,0.24577548]
[1760304211415,1.07019235,115340.0,115330.0,0.17341541]
[1760304211624,1.15348235,115340.0,115320.0,0.28157548]
[1760304211820,1.15648235,115340.0,115320.0,0.28128319]
[1760304212228,1.01340038,115340.0,115330.0,0.22718541]
[1760304212434,1.12439038,115340.0,115330.0,0.17341541]
[1760304212666,1.12439038,115340.0,115330.0,0.005]
[1760304212875,1.12439038,115340.0,115330.0,0.17812755]
[1760304213099,1.12439038,115340.0,115330.0,0.17783988]
[1760304213305,1.12439038,115340.0,115330.0,0.17755209]
[1760304213510,1.12439038,115340.0,115330.0,0.00413668]
[1760304213728,1.12439038,115340.0,115330.0,0.17726416]
[1760304213987,1.12439038,115340.0,115330.0,0.17697575]
[1760304214489,1.12439038,115340.0,115330.0,0.17668649]
[1760304214718,1.12439038,115340.0,115330.0,0.1813961]
[1760304215227,1.12439038,115340.0,115330.0,0.18110478]
[1760304215460,1.12439038,115340.0,115330.0,0.18081513]
[1760304215686,1.12439038,115340.0,115330.0,0.18052372]
[1760304215898,1.12439038,115340.0,115330.0,0.18023215]
[1760304216313,1.12439038,115340.0,115330.0,0.17994137]
[1760304216544,1.12439038,115340.0,115330.0,0.17964706]
[1760304216764,1.12439038,115340.0,115330.0,0.17935565]
[1760304217129,1.12439038,115340.0,115330.0,0.17906289]
[1760304217341,1.12439038,115340.0,115330.0,0.17877383]
[1760304217748,1.12439038,115340.0,115330.0,0.17848513]
[1760304217957,1.12439038,115340.0,115330.0,0.1781937]
[1760304218387,1.12439038,115340.0,115330.0,0.17789857]
[1760304218627,0.5,115340.0,115330.0,0.21178739]
[1760304218831,0.08082443,115340.0,115330.0,1.15546848]
[1760304219055,0.05478292,115340.0,115330.0,1.1551744]
[1760304219271,0.02874141,115340.0,115330.0,1.15488239]
[1760304219477,0.0026999,115340.0,115330.0,1.15458722]
[1760304219692,0.09396707,115380.0,115370.0,0.17335529]
[1760304219903,0.26730733,115380.0,115370.0,0.17305899]
[1760304220109,0.69359733,115380.0,115370.0,0.17276521]
[1760304220353,0.62433026,115380.0,115370.0,0.17276521]
[1760304220570,1.05187228,115370.0,115350.0,0.17338507]
[1760304220787,1.05184552,115370.0,115360.0,0.17307693]
[1760304220996,0.0342,115360.0,115350.0,0.17308807]
[1760304221202,0.0589,115360.0,115350.0,0.17308807]
[1760304221411,0.0589,115360.0,115350.0,0.17279168]
[1760304221854,0.0589,115360.0,115350.0,0.18149576]
[1760304222073,0.0589,115360.0,115350.0,0.17620062]
[1760304222277,0.0589,115360.0,115350.0,0.17220062]
[1760304222484,0.0589,115360.0,115350.0,0.17690109]
[1760304222660,0.0589,115360.0,115350.0,0.18059935]
[1760304223074,0.57227031,115360.0,115350.0,0.18029868]
[1760304223436,1.16285054,115360.0,115350.0,0.1820832]
[1760304223653,0.62436031,115360.0,115350.0,0.18178083]
[1760304223881,0.62465271,115360.0,115350.0,0.19912083]
[1760304224071,0.4512824,115360.0,115350.0,0.19882063]
[1760304224202,0.42526646,115360.0,115350.0,0.22437534]
[1760304224418,0.59863677,115360.0,115350.0,0.22407535]
[1760304224626,0.59863677,115360.0,115350.0,0.23077553]
[1760304224832,0.64778677,115360.0,115350.0,0.19312553]
[1760304225037,0.64749437,115360.0,115350.0,0.19452817]
[1760304225252,0.64749437,115360.0,115350.0,0.1942221]
[1760304225465,0.64749437,115360.0,115350.0,0.1982221]
[1760304225688,0.64749437,115360.0,115350.0,0.02603448]
[1760304225953,0.64749437,115360.0,115350.0,0.19911786]
[1760304226167,0.64749437,115360.0,115350.0,0.26130423]
[1760304226322,0.64749437,115360.0,115350.0,0.26100188]
[1760304226526,0.64749437,115360.0,115350.0,0.26069355]
[1760304227109,0.64749437,115360.0,115350.0,0.25691171]
[1760304227264,0.64749437,115360.0,115350.0,0.25660504]
[1760304227447,0.64749437,115360.0,115350.0,0.25629781]
[1760304227650,0.64749437,115360.0,115350.0,0.25291171]
[1760304227853,0.57664437,115360.0,115350.0,0.28625642]
[1760304228091,0.57664437,115360.0,115350.0,0.19011412]
[1760304228092,0.60146437,115360.0,115350.0,0.19011412]
[1760304228305,0.64761437,115360.0,115350.0,0.19011412]
[1760304228505,0.64761437,115360.0,115350.0,0.18980789]
[1760304228825,0.65061437,115360.0,115350.0,0.07829717]
[1760304229031,0.65061437,115360.0,115350.0,0.07798448]
[1760304229391,0.65061437,115360.0,115350.0,0.07767541]
[1760304229631,0.51338534,115350.0,115340.0,0.06218637]
[1760304229792,0.59081534,115350.0,115340.0,0.25292675]
[1760304230026,0.62525534,115350.0,115340.0,0.01702704]
[1760304230227,1.16374557,115350.0,115340.0,0.01702704]
[1760304230413,1.18982237,115350.0,115340.0,0.01671507]
[1760304230618,1.18982237,115350.0,115340.0,0.01640092]
[1760304230941,1.18982237,115350.0,115340.0,0.01608668]
[1760304231103,1.19082237,115350.0,115340.0,0.01608668]
[1760304231306,1.18982237,115350.0,115340.0,0.01577316]
[1760304231528,1.19182237,115350.0,115340.0,0.01577316]
[1760304231761,1.19282237,115350.0,115340.0,0.0154591]
[1760304231956,1.18982237,115350.0,115340.0,0.01514389]
[1760304232346,1.19582237,115350.0,115340.0,0.01483048]
[1760304232557,1.19582237,115350.0,115340.0,0.01451358]
[1760304232964,1.19582237,115350.0,115340.0,0.01419654]
[1760304233169,1.19582237,115350.0,115340.0,0.01387842]
[1760304233372,1.19482237,115350.0,115340.0,0.01387842]
[1760304233572,1.19482237,115350.0,115340.0,0.01356113]
[1760304233910,1.19082237,115350.0,115340.0,0.01324398]
[1760304234116,0.17340038,115340.0,115330.0,0.27192779]
[1760304234361,0.77286061,115340.0,115330.0,0.09851238]
[1760304234570,0.77286061,115340.0,115330.0,0.09819499]
[1760304234770,0.77286061,115340.0,115330.0,0.09787681]
[1760304234975,0.77286061,115340.0,115330.0,0.27129222]
[1760304235178,0.77286061,115340.0,115330.0,0.27097285]
[1760304235384,0.82376061,115340.0,115330.0,0.27097285]
[1760304235645,0.82476061,115340.0,115330.0,0.20845246]
[1760304235866,0.82976061,115340.0,115330.0,0.03472308]
[1760304236076,0.82976061,115340.0,115330.0,0.03440867]
[1760304236492,0.82976061,115340.0,115330.0,0.03409425]
[1760304236719,0.82876061,115340.0,115330.0,0.03377306]
[1760304236928,0.82376061,115340.0,115330.0,0.03377306]
[1760304237137,0.82476061,115340.0,115330.0,0.03345236]
[1760304237353,0.82976061,115340.0,115330.0,0.03313141]
[1760304237755,0.82476061,115340.0,115330.0,0.03281023]
[1760304237916,0.82476061,115340.0,115330.0,0.03248849]
[1760304238113,0.82976061,115340.0,115330.0,0.03248849]
[1760304238323,0.82976061,115340.0,115320.0,0.103841]
[1760304238324,1.25847995,115340.0,115320.0,0.103841]
[1760304238501,1.12933564,115330.0,115320.0,0.04132161]
[1760304238686,1.16377564,115330.0,115320.0,0.04132161]
[1760304238891,1.16377564,115330.0,115320.0,0.04100309]
[1760304239092,1.16377564,115330.0,115320.0,0.04068399]
[1760304239316,1.18985574,115330.0,115320.0,0.04068399]
[1760304239558,1.18985574,115330.0,115320.0,0.04036476]
[1760304239735,1.18985574,115330.0,115320.0,0.04019367]
[1760304240112,1.18985574,115330.0,115320.0,0.03987551]
[1760304240314,1.18985574,115330.0,115320.0,0.03955964]
[1760304240776,1.18985574,115330.0,115320.0,0.03924093]
[1760304241112,1.19485574,115330.0,115320.0,0.03891985]
[1760304241313,1.19485574,115330.0,115320.0,0.03859824]
[1760304241738,1.19485574,115330.0,115320.0,0.03827833]
[1760304241994,1.19485574,115330.0,115320.0,0.03795855]
[1760304242198,1.14395574,115330.0,115320.0,0.05498188]
[1760304242410,1.19485574,115330.0,115320.0,0.05498188]
[1760304242617,1.19485574,115330.0,115320.0,0.03732168]
[1760304242823,1.19485574,115330.0,115320.0,0.03700254]
[1760304243267,1.19485574,115330.0,115320.0,0.03668114]
[1760304243478,1.19485574,115330.0,115320.0,0.03636385]
[1760304243679,1.19485574,115330.0,115320.0,0.03604275]
[1760304243828,1.19485574,115330.0,115320.0,0.05338275]
[1760304244036,1.19485574,115330.0,115320.0,0.05306464]
[1760304244390,1.19485574,115330.0,115320.0,0.05274368]
[1760304244609,1.19485574,115330.0,115320.0,0.05242096]
[1760304245030,1.19485574,115330.0,115320.0,0.05210117]
[1760304245234,1.19485574,115330.0,115320.0,0.05177904]
[1760304245575,1.19485574,115330.0,115320.0,0.05145688]
[1760304245789,1.19485574,115330.0,115320.0,0.05113357]
[1760304246197,1.19485574,115330.0,115320.0,0.05081012]
[1760304246585,1.19485574,115330.0,115320.0,0.05049267]
[1760304246820,1.19485574,115330.0,115320.0,0.05017476]
[1760304247047,0.65636551,115330.0,115320.0,0.0498566]
[1760304247261,1.19485574,115330.0,115320.0,0.0498566]
[1760304247464,1.19485574,115330.0,115320.0,0.04953851]
[1760304247712,1.19633244,115330.0,115320.0,0.04921576]
[1760304248136,1.28505178,115330.0,115320.0,0.04889487]
[1760304248377,1.22541431,115330.0,115320.0,0.0485706]
[1760304248725,1.22541431,115330.0,115320.0,0.04824627]
[1760304248929,1.22541431,115330.0,115320.0,0.0479233]
[1760304249338,1.22541431,115330.0,115320.0,0.04760173]
[1760304249544,1.22541431,115330.0,115320.0,0.04727881]
[1760304249965,1.22541431,115330.0,115320.0,0.04696096]
[1760304250130,1.22541431,115330.0,115320.0,0.0466437]
[1760304250486,1.22541431,115330.0,115320.0,0.04632035]
[1760304250834,1.22541431,115330.0,115320.0,0.04599872]
[1760304251212,1.22541431,115330.0,115320.0,0.04567998]
[1760304251440,1.22541431,115330.0,115320.0,0.0453621]
[1760304251773,1.22541431,115330.0,115320.0,0.04504392]
[1760304252194,1.22541431,115330.0,115320.0,0.04472073]
[1760304252381,1.22541431,115330.0,115320.0,0.04439834]
[1760304252788,1.22541431,115330.0,115320.0,0.04407921]
[1760304253016,1.22541431,115330.0,115320.0,0.04375916]
[1760304253413,1.22541431,115330.0,115320.0,0.04343827]
[1760304253624,1.22541431,115330.0,115320.0,0.0431202]
[1760304254046,1.22541431,115330.0,115320.0,0.04279889]
[1760304254198,1.22541431,115330.0,115320.0,0.04248012]
[1760304254676,1.22541431,115330.0,115320.0,0.04216211]
[1760304254879,1.22541431,115330.0,115320.0,0.04184211]
[1760304255051,0.68692408,115330.0,115320.0,0.04184211]
[1760304255258,1.22541431,115330.0,115320.0,0.0415254]
[1760304255709,1.82552264,115330.0,115320.0,0.04120509]
[1760304255910,1.82552264,115330.0,115320.0,0.04088801]
[1760304256317,1.82552264,115330.0,115320.0,0.04056647]
[1760304256647,1.82552264,115330.0,115320.0,0.04024987]
[1760304256855,1.82552264,115330.0,115320.0,0.03992776]
[1760304257063,1.79644077,115330.0,115320.0,0.03992776]
[1760304257284,1.79644077,115330.0,115320.0,0.03960509]
[1760304257513,1.79644077,115330.0,115320.0,0.03928391]
[1760304257727,1.88292554,115330.0,115320.0,0.03896489]
[1760304258151,1.79644077,115330.0,115320.0,0.03864319]
[1760304258375,1.79644077,115330.0,115320.0,0.03832091]
[1760304258775,1.79644077,115330.0,115320.0,0.03800149]
[1760304259013,1.79644077,115330.0,115320.0,0.0376849]
[1760304259224,0.65784221,115330.0,115320.0,0.0376849]
[1760304259436,1.79644077,115330.0,115320.0,0.03736542]
[1760304259646,1.79644077,115330.0,115320.0,0.03704653]
[1760304260098,1.79644077,115330.0,115320.0,0.03672826]
[1760304260310,1.79644077,115330.0,115320.0,0.03641037]
[1760304260704,1.79644077,115330.0,115320.0,0.03609338]
[1760304260930,1.79644077,115330.0,115320.0,0.03577737]
[1760304261158,1.79644077,115330.0,115320.0,0.03546138]
[1760304261372,1.88516011,115330.0,115320.0,0.03546138]
[1760304261581,0.74656155,115330.0,115320.0,0.03514013]
[1760304261792,1.79644077,115330.0,115320.0,0.03482147]
[1760304262218,1.79644077,115330.0,115320.0,0.03450263]
[1760304262443,1.79644077,115330.0,115320.0,0.03418633]
[1760304263068,1.79644077,115330.0,115320.0,0.03386824]
[1760304263283,1.79644077,115330.0,115320.0,0.03355039]
[1760304263732,1.79644077,115330.0,115320.0,0.03322975]
[1760304263959,2.83477455,115330.0,115320.0,0.01557072]
[1760304264175,2.83477455,115330.0,115320.0,0.01525077]
[1760304264176,2.89080599,115330.0,115320.0,0.01525077]
[1760304264619,0.17344549,115310.0,115300.0,0.00055609]
[1760304264856,2.07798924,115310.0,115300.0,0.0002352]
[1760304265063,2.85186973,115310.0,115300.0,0.0002352]
[1760304265289,2.86812132,115310.0,115300.0,0.0002352]
[1760304265496,1.65207414,115290.0,115280.0,0.04699773]
[1760304265698,1.67646414,115290.0,115280.0,0.04699773]
[1760304265915,1.76324414,115290.0,115280.0,0.04668156]
[1760304266175,0.71336492,115290.0,115280.0,0.04668156]
[1760304266386,1.90713855,115290.0,115280.0,0.04668156]
[1760304267225,0.76853999,115290.0,115280.0,0.05068156]
[1760304267458,2.88861811,115290.0,115280.0,0.05068156]
[1760304267666,2.88861811,115290.0,115280.0,0.05468156]
[1760304268371,2.88861811,115290.0,115280.0,0.00900156]
[1760304268585,2.88861811,115290.0,115280.0,0.01200156]
[1760304269011,2.88861811,115290.0,115280.0,0.00900156]
[1760304269214,2.88861811,115290.0,115280.0,0.00500156]
[1760304269626,2.88861811,115290.0,115280.0,0.00900156]
[1760304269832,2.88861811,115290.0,115280.0,0.00500156]
[1760304270225,2.88861811,115290.0,115280.0,0.00900156]
[1760304270439,2.88861811,115290.0,115280.0,0.01200156]
[1760304270847,2.88861811,115290.0,115280.0,0.00900156]
[1760304271271,2.88861811,115290.0,115280.0,0.01200156]
[1760304272122,2.91556768,115290.0,115280.0,0.01200156]
[1760304272794,2.93174788,115290.0,115280.0,0.01200156]
[1760304274512,1.96094288,115290.0,115280.0,0.01200156]
[1760304274733,2.93174788,115290.0,115280.0,0.01200156]
[1760304275181,1.96094288,115290.0,115280.0,0.01200156]
[1760304275402,2.93174788,115290.0,115280.0,0.01200156]
[1760304275832,2.93174788,115290.0,115280.0,0.01311399]
[1760304276745,2.93174788,115290.0,115280.0,0.01011399]
[1760304277162,1.96094288,115290.0,115280.0,0.01311399]
[1760304277376,2.93174788,115290.0,115280.0,0.01311399]
[1760304277626,2.93173241,115290.0,115280.0,0.01011399]
[1760304277865,2.93173241,115290.0,115280.0,0.01311399]
[1760304279221,1.96092741,115290.0,115280.0,0.01311399]
[1760304279433,2.93173241,115290.0,115280.0,0.01311399]
[1760304279657,2.80615953,115290.0,115280.0,0.01311399]
[1760304281628,1.83535453,115290.0,115280.0,0.01311399]
[1760304281845,2.80615953,115290.0,115280.0,0.01311399]
[1760304282054,1.83535453,115290.0,115280.0,0.01311399]
[1760304282265,2.80615953,115290.0,115280.0,0.01311399]
[1760304283317,2.80616066,115290.0,115280.0,0.01311399]
[1760304285170,1.83535566,115290.0,115280.0,0.01311399]
[1760304285555,2.80616066,115290.0,115280.0,0.01311399]
[1760304287418,1.83536882,115290.0,115280.0,0.01011399]
[1760304287623,1.83536882,115290.0,115280.0,0.01311399]
[1760304287860,2.80617382,115290.0,115280.0,0.00911399]
[1760304288087,2.29966098,115290.0,115280.0,0.00911399]
[1760304288751,2.80617382,115290.0,115280.0,0.00911399]
[1760304289606,1.79314814,115290.0,115280.0,0.01211399]
[1760304289810,1.83536882,115290.0,115280.0,0.01211399]
[1760304290012,2.80617382,115290.0,115280.0,0.01211399]
[1760304290867,2.29966098,115290.0,115280.0,0.01211399]
[1760304293067,2.80617382,115290.0,115280.0,0.01211399]
[1760304294088,2.81429723,115290.0,115280.0,0.00911399]
[1760304294283,1.84349223,115290.0,115280.0,0.01211399]
[1760304294541,2.81429723,115290.0,115280.0,0.00911399]
[1760304294695,2.81429723,115290.0,115280.0,0.01211399]
[1760304295104,2.81429723,115290.0,115280.0,0.00911399]
[1760304295404,2.81429723,115290.0,115280.0,0.01211399]
[1760304295589,2.81429723,115290.0,115280.0,0.00911399]
[1760304296007,2.81429723,115290.0,115280.0,0.01211399]
[1760304297105,1.84349223,115290.0,115280.0,0.01211399]
[1760304297334,2.81429723,115290.0,115280.0,0.01211399]
[1760304298035,1.80127155,115290.0,115280.0,0.01211399]
[1760304298220,1.84349223,115290.0,115280.0,0.01211399]
[1760304298405,2.81429723,115290.0,115280.0,0.01211399]
[1760304298770,2.81429723,115290.0,115280.0,0.00911399]
[1760304298965,2.81429723,115290.0,115280.0,0.01111399]
[1760304299371,1.84349223,115290.0,115280.0,0.01111399]
[1760304299639,1.84349223,115290.0,115280.0,0.00911399]
[1760304299640,1.80127155,115290.0,115280.0,0.00911399]
[1760304299779,2.81429723,115290.0,115280.0,0.01211399]
[1760304300699,2.81429723,115290.0,115280.0,0.00911399]
[1760304301084,2.81429723,115290.0,115280.0,0.01211399]
[1760304301372,2.81429723,115290.0,115280.0,0.00911399]
[1760304301571,2.80617382,115290.0,115280.0,0.00911399]
[1760304301727,2.80617382,115290.0,115280.0,0.01311399]
[1760304301928,1.79314814,115290.0,115280.0,0.01311399]
[1760304302138,1.83536882,115290.0,115280.0,0.01311399]
[1760304302345,2.80617382,115290.0,115280.0,0.01311399]
[1760304302722,1.83536882,115290.0,115280.0,0.01311399]
[1760304302956,2.80617382,115290.0,115280.0,0.01311399]
[1760304303160,1.83536882,115290.0,115280.0,0.01311399]
[1760304303538,2.81429813,115290.0,115280.0,0.01311399]
[1760304304116,1.84349313,115290.0,115280.0,0.01311399]
[1760304304321,2.81429813,115290.0,115280.0,0.01311399]
[1760304305195,1.84349265,115290.0,115280.0,0.01311399]
[1760304305426,2.81429765,115290.0,115280.0,0.01311399]
[1760304307094,1.80127197,115290.0,115280.0,0.01311399]
[1760304307304,2.81429765,115290.0,115280.0,0.01311399]
[1760304307734,0.33759236,115290.0,115280.0,0.01311399]
[1760304307973,0.8441052,115290.0,115280.0,0.01311399]
[1760304308192,0.67759236,115290.0,115280.0,0.01311399]
[1760304308407,0.66141334,115290.0,115280.0,0.01011399]
[1760304308619,1.16792618,115290.0,115280.0,0.00611399]
[1760304308843,0.66141334,115290.0,115280.0,0.01311399]
[1760304309053,1.22853486,115290.0,115280.0,0.01311399]
[1760304309263,1.28596113,115290.0,115280.0,0.01311399]
[1760304309714,1.30221101,115290.0,115280.0,0.01311399]
[1760304310127,1.28596113,115290.0,115280.0,0.01311399]
[1760304310787,1.30221142,115290.0,115280.0,0.01311399]
[1760304310996,0.79569858,115290.0,115280.0,0.01311399]
[1760304311204,1.30221142,115290.0,115280.0,0.01311399]
[1760304311407,1.28596113,115290.0,115280.0,0.01311399]
[1760304312139,1.28596113,115290.0,115280.0,0.05479399]
[1760304312599,0.71883961,115290.0,115280.0,0.05479399]
[1760304312821,1.22535245,115290.0,115280.0,0.05479399]
[1760304313035,0.60926334,115290.0,115280.0,0.10618399]
[1760304313492,0.60926334,115290.0,115280.0,0.33142462]
[1760304313493,0.34,115290.0,115280.0,0.33142462]
[1760304313708,0.70532777,115310.0,115290.0,0.17346194]
[1760304313922,0.61339814,115310.0,115300.0,0.22637053]
[1760304314137,1.11991098,115310.0,115300.0,0.22637053]
[1760304314355,1.16919098,115310.0,115290.0,0.19298811]
[1760304314563,1.15294414,115310.0,115290.0,0.24473811]
[1760304314802,0.81294414,115310.0,115290.0,0.24473811]
[1760304315002,0.34,115300.0,115290.0,0.25073811]
[1760304315380,0.34,115300.0,115290.0,0.28315811]
[1760304316315,0.34,115300.0,115290.0,0.28015811]
[1760304316517,0.20050331,115310.0,115300.0,0.17346053]
[1760304316730,1.02092978,115310.0,115300.0,0.22465053]
[1760304316954,0.84748325,115310.0,115300.0,0.22465053]
[1760304317162,0.34097041,115310.0,115300.0,0.27640053]
[1760304317797,0.34097041,115310.0,115300.0,0.27940053]
[1760304318016,1.16042091,115310.0,115300.0,0.006]
[1760304318279,1.1920489,115310.0,115300.0,0.006]
[1760304318703,0.69557092,115310.0,115300.0,0.006]
[1760304318900,1.20208376,115310.0,115300.0,0.006]
[1760304319140,1.20208376,115310.0,115300.0,0.00571564]
[1760304319574,1.2908031,115310.0,115300.0,0.00571564]
[1760304320167,1.20208376,115310.0,115300.0,0.00571564]
[1760304321977,1.20208376,115310.0,115300.0,0.00557655]
[1760304323707,1.22817213,115310.0,115300.0,0.00557655]
[1760304323944,1.19654414,115310.0,115300.0,0.00557655]
[1760304324181,1.16433197,115310.0,115300.0,0.00557655]
[1760304324857,0.54050427,115310.0,115300.0,0.08600655]
[1760304325096,1.04701711,115310.0,115300.0,0.25946708]
[1760304325731,1.08070711,115310.0,115300.0,0.03857655]
[1760304325974,1.08070711,115310.0,115300.0,0.00557655]
[1760304325975,2.20005689,115310.0,115300.0,0.00557655]
[1760304326184,2.25835636,115310.0,115300.0,0.00557655]
[1760304326396,1.2200562,115310.0,115300.0,0.00557655]
[1760304326606,1.10601604,115310.0,115300.0,0.03857655]
[1760304326814,1.15621604,115310.0,115300.0,0.003]
[1760304327490,1.18847202,115310.0,115300.0,0.003]
[1760304327922,0.51346053,115300.0,115290.0,0.1922271]
[1760304328131,1.04528337,115300.0,115290.0,0.01875174]
[1760304328340,1.07897337,115300.0,115290.0,0.05175174]
[1760304328549,1.07897337,115300.0,115290.0,0.22522732]
[1760304329245,1.07897337,115300.0,115290.0,0.22922732]
[1760304329472,1.07897337,115300.0,115290.0,0.26039499]
[1760304329679,1.07897337,115300.0,115290.0,0.08691941]
[1760304329883,1.07897337,115300.0,115290.0,0.08991941]
[1760304331928,1.12917337,115300.0,115290.0,0.03816767]
[1760304334348,1.21789271,115300.0,115290.0,0.03816767]
[1760304334568,2.75909452,115300.0,115290.0,0.007]
[1760304334788,2.75909452,115300.0,115280.0,0.00500156]
[1760304335055,2.63670023,115290.0,115280.0,0.00500156]
[1760304335285,2.49732131,115280.0,115270.0,0.04208]
[1760304335499,2.60652131,115280.0,115270.0,0.04208]
[1760304335720,2.66956362,115280.0,115270.0,0.04208]
[1760304337081,2.68579093,115280.0,115270.0,0.04208]
[1760304337284,1.48431068,115270.0,115260.0,1e-08]
[1760304337530,2.09492942,115270.0,115260.0,1e-08]
[1760304337762,2.17881945,115270.0,115260.0,1e-08]
[1760304338015,2.1625947,115270.0,115260.0,1e-08]
[1760304338646,2.19069499,115270.0,115260.0,0.00049437]
[1760304338778,2.27941431,115270.0,115260.0,0.00049437]
[1760304339013,1.31160931,115270.0,115260.0,0.00049437]
[1760304339218,0.17353579,115250.0,115240.0,0.08845461]
[1760304339451,1.35833265,115250.0,115240.0,0.04168]
[1760304339652,1.51394223,115250.0,115240.0,0.04168]
[1760304340006,1.5400442,115250.0,115240.0,0.04168]
[1760304340221,1.8800442,115250.0,115240.0,0.04168]
[1760304340454,1.8850442,115250.0,115240.0,0.04168]
[1760304340663,1.8870442,115250.0,115240.0,0.04168]
[1760304340897,1.8850442,115250.0,115240.0,0.04168]
[1760304341336,1.34708624,115250.0,115240.0,0.04168]
[1760304341544,1.8870442,115250.0,115240.0,0.04168]
[1760304341751,1.8820442,115250.0,115240.0,0.04446215]
[1760304341950,1.8850442,115250.0,115240.0,0.04446215]
[1760304343220,2.8558492,115250.0,115240.0,0.04446215]
[1760304344505,2.31589124,115250.0,115240.0,0.04446215]
[1760304344722,2.8558492,115250.0,115240.0,0.04446215]
[1760304345163,2.31589124,115250.0,115240.0,0.04446215]
[1760304345384,2.8558492,115250.0,115240.0,0.04446215]
[1760304346060,1.77593328,115250.0,115240.0,0.04446215]
[1760304346271,2.31589124,115250.0,115240.0,0.04446215]
[1760304346696,2.25332006,115250.0,115240.0,0.04446215]
[1760304346909,2.28313384,115250.0,115240.0,0.04446215]
[1760304347317,2.1944145,115250.0,115240.0,0.04446215]
[1760304348575,1.79332629,115250.0,115240.0,0.04446215]
[1760304348799,2.78027966,115250.0,115240.0,0.04446215]
[1760304349044,1.48438597,115220.0,115210.0,0.03108635]
[1760304349284,1.62804593,115220.0,115210.0,4.956e-05]
[1760304349502,2.25014389,115220.0,115210.0,4.956e-05]